{"text_format":"1","workbook":"xlsx","n_sheets":6,"sheets":["Attending","Invoice","Not Attending","Program","Name","Checklist"],"not_rendered":{"charts":0,"images":2,"macros":1,"external_links":0,"defined_names":6,"comments":2,"pivot_tables":0},"unopened":[],"bounds":{"document_bytes":16777216,"sheet_cells":100000,"rows_first":2000,"rows_last":500,"rows_between":2000,"halvings":0,"cell_chars":16384,"cell_head_chars":4096},"cells_cut":0,"cells_raw":0,"read":"whole","date_system":"1900"}

{"sheet":"Attending","index":0,"n_rows":102,"n_cols":20,"rows_kept":102,"cut":false,"hidden":false,"merged":[]}
[]
[null,"All-State Volleyball Participants"]
[]
[null,null,null,null,null,"Athletes",{"$f":"COUNTA(E10:E100)","v":91},{"$f":"COUNTIF(F10:F100,\"Yes\")","v":88}]
[null,null,null,null,null,"Guests",null,{"$f":"SUM(G10:G100)","v":180}]
[null,null,null,null,null,"Total",null,{"$f":"H4+H5","v":268}]
[null,null,null,null,null,"Veg Meals",null,{"$f":"SUM(H10:H100)","v":2}]
[]
[null,"#","Name","First Name","Last Name","Banquet","Guests","Veg Meals","Cell Phone","Home Phone","E-Mail","School","Jersey #","Head Coach","Class","Team","Amt Owed","Signed","Release","Comments or Questions"]
[null,1,{"$f":"D10 & \" \" & E10","v":"Megan Chintala"},"Megan","Chintala","Yes",2,0,"(970) 520-5868","(970) 265-2014","meganchin.2015@gmail.com","Fleming",8,"Derek Herbert","1A","Red",{"$f":"G10*30+75","v":135},"No","Yes"]
[null,2,"Heather Dieckman","Heather","Dieckman","Yes",1,0,7195809258,7198490038,"hdieckman@sangreschools.com","Sangre de Cristo",6,"Misty Lambert","1A","Red",105,"No","Yes"]
[null,3,"Hanna  Herman","Hanna ","Herman","Yes",4,0,"719-349-1206","970-664-2621","herman4@plainstel.com","Hi-Plains  ",1,"Erin Henschel","1A","Red",195,"No","Yes"]
[null,4,"Aurelia Isenbart","Aurelia","Isenbart","Yes",2,0,7193500613,7193485032,"isenbartaurelia@gmail.com","Kit Carson",23,"Penny Isenbart","1A","Red",135,"No","Yes"]
[null,5,"Jordan Isom","Jordan","Isom","Yes",1,0,7196919088,7196919088,"kerriekay@hotmail.com","McClave",9,"Rachel Dunning","1A","Red",105,"No","Yes"]
[null,6,"Deborah Kurtzer","Deborah","Kurtzer","Yes",1,0,"970-520-2906","970-774-7132","debbiekurtzer@gmail.com","Fleming",19,"Derek Herbert","1A","Red",105,"No","Yes"]
[null,7,"Koby Mondragon","Koby","Mondragon","Yes",1,0,"719-529-0073","719-529-9344","mondragonkoby@gmail.com","Springfield",11,"Chantel Hall ","1A","Red",105,"No","Yes"]
[null,8,"Elayna Muller","Elayna","Muller","Yes",2,0,"970-520-2880","970-520-2880","elaynaclair@gmail.com","Fleming",1,"Derek Herbert","1A","Red",135,"No","No"]
[null,9,"Jordan Williams","Jordan","Williams","Yes",2,0,"970-209-8201","970-327-0202","jowilliams@npsmavs.com","Norwood",15,"Karla Gonzales","1A","Red",135,"Yes","No"]
[null,10,"Allie Beiriger","Allie","Beiriger","Yes",3,0,"719-480-4150","719-588-9278","lorettabeiriger@hotmail.com","Sangre de Cristo",10,"Misty Lambert","1A","Blue",165,"No","Yes"]
[null,11,"Denise Cano","Denise","Cano","Yes",0,0,"719-342-2710","970-354-7282","denisecanochih@gmail.com","Idalia",1,"Kylie Chamberlain ","1A","Blue",75,"No","Yes"]
[null,12,"Rachel Frantz","Rachel","Frantz","Yes",1,0,"970-580-6364","970-265-2010","rachelf23256@gmail.com","Fleming",9,"Derek Herbert","1A","Blue",105,"No","Yes"]
[null,13,"Stephanie Helling","Stephanie","Helling","Yes",2,0,"719-342-9390","970-354-7330","khfarm@me.com","Idalia",12,"Kylie Chamberlain","1A","Blue",135,"No","Yes"]
[null,14,"Saige Herbert","Saige","Herbert","Yes",2,0,"970 466-1997","970 522-7346","herbertsvb@gmail.com","Fleming",3,"Derek Herbert","1A","Blue",135,"No","No"]
[null,15,"Timmi Keisel","Timmi","Keisel","Yes",2,0,"(970) 580-6358","(970) 580-6562","timmikeisel@gmail.com","Fleming",25,"Derek Herbert","1A","Blue",135,"Yes","No"]
[null,16,"Abbey Stagner","Abbey","Stagner","Yes",1,0,"719-588-0756","719-588-5889","abbeystagner@gmail.com","Sangre De Cristo",4,"Misty Lambert","1A","Blue",105,"No","Yes"]
[null,17,"Rena  Trujillo","Rena ","Trujillo","Yes",1,0,7195659230,7195659230,"rena.trujillo3@gmail.com","La Veta",5,"Bree Lessar","1A","Blue",105,"No","Yes"]
[null,18,"Abigail Valerio","Abigail","Valerio","Yes",2,0,"720-352-9608","720-352-9608","tkvalerio@comcast.net","Rocky Mountain Lutheran",9,"Kelly Presser","1A","Blue",135,"No","Yes"]
[null,19,"Mikaela Balkind","Mikaela","Balkind","Yes",2,0,"970-519-1524","970-728-5855","mikaelabalkind@gmail.com","Telluride",1,"Fawnda Rogers","2A","Red",135,"No","Yes"]
[null,20,"Rachael Edler","Rachael","Edler","Yes",1,0,"970 466 1075","970 520 4680","edlerrachael@gmail.com","Caliche",5,"Jeanett Lambrecht","2A","Red",105,"No","No"]
[null,21,"Sami Johnson","Sami","Johnson","Yes",5,0,7195889510,7195882980,"samijohnson@sargent.k12.co.us","Sargent ",11,"Randi Asbell ","2A","Red",225,"No","Yes"]
[null,22,"Bailee Jones","Bailee","Jones","Yes",2,0,"719-680-1444","719-846-4003","Buddabailee@gmail.com","Hoehne",6,"Shelly Jones","2A","Red",135,"No","No"]
[null,23,"Madison Powell","Madison","Powell","Yes",2,0,"970-630-3228","970-630-1626","madisonpowell@gmail.com","Yuma",4,"Jenny Noble","2A","Red",135,"No","Yes"]
[null,24,"Leah Roberson","Leah","Roberson","Yes",2,0,"(719) 469-6352","(719) 469-2023","leah.roberson@swink.k12.co.us","Swink",16,"Amber Barrett","2A","Red",135,"Yes","No"]
[null,25,"Jessica Taylor","Jessica","Taylor","Yes",0,0,"970-580-2490","970-580-2490","jesstaylor2713@gmail.com","Caliche ",13,"Jeanett Lambrecht","2A","Red",75,"No","Yes"]
[null,26,"Katrina Terrell","Katrina","Terrell","Yes",2,0,"970-630-1021","970-848-5166","rcterrell@centurytel.net","Yuma",5,"Jen Noble","2A","Red",135,"No","Yes"]
[null,27,"Kelci Van Treese","Kelci","Van Treese","Yes",3,0,"719-849-1576","719-852-2851","kelci_vantreese@live.com","Sargent",4,"Randi Asbell","2A","Red",165,"No","Yes"]
[null,28,"Jordan Baer","Jordan","Baer","Yes",2,0,9705549119,9703452569,"jordan_baer@hotmail.com","Akron",14,"Jayme Deal","2A","Blue",135,"No","Yes"]
[null,29,"Taylor  Dodge","Taylor ","Dodge","Yes",2,0,3033043900,3036226515,"taylordodge13@gmail.com","Byers",13,"Jolene Dodge","2A","Blue",135,"No","Yes"]
[null,30,"Easton Hartigan","Easton","Hartigan","Yes",0,0,"970-518-9688","970-234-8584","easton.hartigan@yahoo.com","Paonia",14,"Krista Carsten","2A","Blue",75,"No","Yes"]
[null,31,"Morgan Hartigan","Morgan","Hartigan","Yes",2,0,9709786669,9709786669,"morganhartigan@ymail.com","Paonia",15,"Krista Carsten","2A","Blue",135,"No","Yes"]
[null,32,"Preston Lienemann","Preston","Lienemann","No",0,0,9707449556,9707441101,"pclienemann@gmail.com","Resurrection Christian",5,"Caleb Howard","2A","Blue",75,"Yes","No"]
[null,33,{"$f":"D42 & \" \" & E42","v":"Hannah Lutz"},"Hannah","Lutz","Yes",3,0,"719-433-2637","719-541-2038","Hannahjayne6@gmail.com","Simla",4,"Sue Snyder","2A","Blue",{"$f":"G42*30+75","v":165},"No","Yes"]
[null,34,"Jayde Van Oort","Jayde","Van Oort","Yes",1,0,"719-924-4674","719-489-3763","barrels.love9@gmail.com","Rye",6,"Tammy Van Oort","2A","Blue",105,"No","Yes"]
[null,35,"Madison Webb","Madison","Webb","No",0,0,"970-412-3763","970-461-8861","webbsite4@hotmail.com","Resurrection Christian",9,"Caleb Howard","2A","Blue",75,"No","Yes"]
[null,36,"Madeleine Woods","Madeleine","Woods","Yes",2,0,"719-239-8097","719-783-2148","madydwoods@yahoo.com","Custer County ",13,"Greg Cravens","2A","Blue",135,"No","Yes","I am honored.....Thank you!"]
[null,37,"Kenzi Chrisman","Kenzi","Chrisman","Yes",1,0,9704665355,9704665355,"chrismand@re1valleyschools.org","Sterling",5,"Lisa Schumacher","3A","Red",105,"Yes","No"]
[null,38,"Linneah Dozer","Linneah","Dozer","Yes",2,0,"303-319-6685","303-319-6685","stacey@dare2share.org","Faith Christian",4,"Chris Powers","3A","Red",135,"No","No"]
[null,39,"Danyle Dupray","Danyle","Dupray","Yes",2,0,3038957536,"303 8957536","dadupray@comcast.net","Faith Christian",3,"Chris Powers","3A","Red",135,"No","Yes"]
[null,40,"Felicia Hernandez","Felicia","Hernandez","Yes",2,0,"720-272-4100","303-341-2976","felicia.hernandez97@yahoo.com","Bishop Machebeuf",1,"John Hardcastle","3A","Red",135,"No","Yes"]
[null,41,"Kirstie Hillyer","Kirstie","Hillyer","Yes",2,1,"970-749-7785","970-884-0217","4hillyer@mydurango.net","Bayfield",1,"Terene Foutz","3A","Red",135,"Yes","No"]
[null,42,"Elizabeth Jensen","Elizabeth","Jensen","Yes",1,0,3038547320,3033374361,"emjensen120@hotmail.com","Bishop Machebeuf",2,"John Hardcastle","3A","Red",105,"No","Yes"]
[null,43,"Leah Kanakaraj","Leah","Kanakaraj","Yes",4,0,"970-930-5964","970-987-2156","leahkanakaraj@yahoo.com","Coal Ridge",5,"Scott Black ","3A","Red",195,"No","Yes","What time will the practice be held at on Saturday the 15th?"]
[null,44,"Shayla Klein","Shayla","Klein","Yes",3,0,"(970) 520-0081","(970) 522-8936","kleinshayla@hotmail.com","Sterling ",12,"Lisa Schumacher","3A","Red",165,"No","Yes"]
[null,45,"Theresa Tafoya","Theresa","Tafoya","Yes",2,0,"970-209-8904","970-323-5577","richt@mtnwst.com","Olathe",9,"Becky Patrone","3A","Red",135,"No","Yes"]
[null,46,"Cori Aafedt","Cori","Aafedt","Yes",4,0,9703717454,9707850462,"cori.aafedt@yahoo.com","Valley",8,"René Aafedt","3A","Blue",195,"No","Yes"]
[null,47,"Winter Bardol","Winter","Bardol","Yes",4,0,"719-207-3330","719-395-5895","Comfortheater@gmail.com","Buena Vista",4,"Jamie Page","3A","Blue",195,"No","Yes"]
[null,48,"Kyra  Chenoweth","Kyra ","Chenoweth","Yes",6,0,9704626847,9704626891,"chenowethkyra@yahoo.com","Grand Valley",6,"Dave Walck","3A","Blue",255,"No","Yes"]
[null,49,"Alondra Garza","Alondra","Garza","Yes",3,0,"970-301-5606","970-324-7382","nonagarza05@hotmail.com","Valley",1,"Renѐ Aafedt","3A","Blue",165,"No","Yes"]
[null,50,"Jamie Jo Johnson","Jamie Jo","Johnson","Yes",2,0,9705380519,9702846992,"kjsjohnson@aol.com","Platte Valley",6,"Jared Rudiger","3A","Blue",135,"No","Yes"]
[null,51,"Kyra Mix","Kyra","Mix","Yes",2,0,"(970) 590-5321","(970) 590-5321","lauramix76@gmail.com","Platte Valley",14,"Jared Rudiger","3A","Blue",135,"No","Yes"]
[null,52,"Layne Pachl","Layne","Pachl","Yes",2,0,"970-373-7420","970-371-7571","rptplp@msn.com","Valley",12,"Renѐ Aafedt","3A","Blue",135,"Yes","No"]
[null,53,"Cori Scott","Cori","Scott","Yes",5,1,"719-207-2918","719-395-2852","Corinas334@gmail.com","Buena Vista",5,"Jamie Page","3A","Blue",225,"No","Yes"]
[null,54,"Samantha Joy Smith","Samantha Joy","Smith","Yes",2,0,9703967755,9703718555,"dmcsm5@yahoo.com","University",7,"Lindsey Brown","3A","Blue",135,"No","Yes"]
[null,55,"Jessica Jackson","Jessica","Jackson","Yes",2,0,7203316867,3035769498,"Cvajackson9@hotmail.com","Thomas Jefferson",9,"Kathleen Nickless","4A","Red",135,"Yes","No"]
[null,56,"Kayla Kagan","Kayla","Kagan","Yes",2,0,"303-257-6575","303-946-8095","kaylakagan23@gmail.com","Elizabeth",3,"Lori McCoin","4A","Red",135,"No","Yes"]
[null,57,"Cori Kirschling","Cori","Kirschling","Yes",1,0,3036520565,3036520565,"kim.kirschling@gmail.com","Niwot",6,"Preston Brown","4A","Red",105,"No","Yes"]
[null,58,"Ellise Lech","Ellise","Lech","Yes",2,0,3035502716,3035230719,"ellise_lech@yahoo.com","Ponderosa",11,"Rob Graham","4A","Red",135,"No","Yes"]
[null,59,"Becca Page","Becca","Page","Yes",2,0,"303-514-8190","303-841-3463","hoops1222@msn.com","Ponderosa",15,"Rob Graham","4A","Red",135,"No","Yes"]
[null,60,"Naomi  Pinnecoose","Naomi ","Pinnecoose","Yes",2,0,"970-759-5765","970-799-0102","npsoccer3211@gmail.com","Montezuma Cortez",7,"Andi Pickens ","4A","Red",135,"No","Yes"]
[null,61,"Shay Piper","Shay","Piper","Yes",3,0,7208916689,3033176448,"shaypiper6@gmail.com","Elizabeth",6,"Lori McCoin","4A","Red",165,"No","Yes"]
[null,62,"Dani Potter","Dani","Potter","Yes",2,0,"303-589-1560","303-881-2165","dani_potter10@yahoo.com","Green Mountain",10,"Kelley Morrison","4A","Red",135,"No","Yes"]
[null,63,"Cassidy Wurth","Cassidy","Wurth","Yes",3,0,"303-907-3188","303-916-7905","cassidywurth@me.com","Valor Christian",5,"Tara Hittle","4A","Red",165,"Yes","No","Volleyball scholarship to Colorado School of Mines"]
[null,64,"Kellyn Alexander","Kellyn","Alexander","Yes",4,0,9702092048,9702496990,"yayakeri@live.com","Montrose",6,"Shane Forrest","4A","Blue",195,"No","Yes"]
[null,65,{"$f":"D74 & \" \" & E74","v":"Lindsey Baker"},"Lindsey","Baker","Yes",1,0,7192387333,7192389898,"lbaker259@gmail.com","Cheyenne Mountain",5,"David Barkley","4A","Blue",{"$f":"G74*30+75","v":105},"Yes","No"]
[null,66,"Courtney Domme (Inj)","Courtney","Domme (Inj)","No",0,0,null,null,null,"Cheyenne Mountain",1,"David Barkley","4A","Blue",75,"No","No"]
[null,67,"Mackenzie Ellison","Mackenzie","Ellison","Yes",3,0,"(970) 331-4833","(970) 904-0346","mackievball7@gmail.com","Battle Mountain",6,"Jason Fitzgerald ","4A","Blue",165,"No","Yes"]
[null,68,"Jordan Hoffman ","Jordan","Hoffman ","Yes",3,0,"719-447-5960","719-339-8505","Jordanhoffmanvolleyball3@gmail.com","Mesa Ridge",11,"Sam Oerter ","4A","Blue",165,"No","Yes"]
[null,69,"Nicole  Montgomery ","Nicole ","Montgomery ","Yes",1,0,7196407940,7196407940,"temanjena@yahoo.com","Lewis-Palmer",6,"Susan Odenbaugh ","4A","Blue",105,"No","Yes"]
[null,70,"Jenna Price","Jenna","Price","Yes",4,0,"719-649-5926","719-538-5677","jennaprice13@aol.com","Cheyenne Mountain",15,"David Barkley","4A","Blue",195,"Yes","No"]
[null,71,"Allegra Shippy","Allegra","Shippy","Yes",1,0,"719-557-0033","719-647-6469","allegragshippy11@hotmail.com","Pueblo West",11,"Casey King","4A","Blue",105,"Yes","No"]
[null,72,"Alexa Smith","Alexa","Smith","Yes",2,0,7192163196,7194810971,"alexasmithvb@gmail.com","Lewis Palmer",7,"Susan Odenbaugh","4A","Blue",135,"Yes","No"]
[null,73,"Jayde Vujcich","Jayde","Vujcich","Yes",1,0,"719-252-2588","719-647-2219","jaydevujcich1@gmail.com","Pueblo West",8,"Casey King","4A","Blue",105,"Yes","Yes"]
[null,74,"Jillian Desmond","Jillian","Desmond","Yes",2,0,"(303) 819-9184","(303) 627-7662","Jilliandesmond@yahoo.com","Regis Jesuit",8,"Laura Dunston","5A","Red",135,"No","Yes"]
[null,75,"Simone Gibeau","Simone","Gibeau","Yes",2,0,"303-956-1092","303-956-5000","delatsu@msn.com","Ralston Valley",11,"Deb Ponis-Erickson","5A","Red",135,"Yes","No"]
[null,76,"Amelia Metzler","Amelia","Metzler","Yes",3,0,"720-879-7382","303-916-5281","ameliametzler@yahoo.com","Chatfield",6,"Stephanie Schick","5A","Red",165,"Yes","No"]
[null,77,"Melanie Patenaude","Melanie","Patenaude","Yes",2,0,3039294128,3036997629,"patenaude.mp@gmail.com","Cherry Creek",7,"Sally Moos","5A","Red",135,"No","Yes"]
[null,78,"Katie Patrick","Katie","Patrick","Yes",2,0,7205142824,3036931849,"kpatrick24@comcast.net","Grandview",15,"Patty Childress","5A","Red",135,"Yes","No"]
[null,79,"Jordyn Poulter","Jordyn","Poulter","Yes",3,0,"303-929-3118","303-680-6561","jpoult15@yahoo.com","Eaglecrest",13,"Tanya Bond","5A","Red",165,"Yes","No","Jordyn will be signing her NLI on Wednesday, Nov. 12th."]
[null,80,"Shea Reilly","Shea","Reilly","Yes",2,0,"303-963-6105","303-221-3476","reilly672@gmail.com","Cherry Creek",3,"Sally Moos","5A","Red",135,"No","Yes"]
[null,81,"Santaisha Sturges","Santaisha","Sturges","Yes",2,0,"303-517-4233","720-851-8287","sturgessce@comcast.net","Regis Jesuit",2,"Laura Dunston","5A","Red",135,"Yes","No"]
[null,82,"Ali Williams-Daugherty","Ali","Williams-Daugherty","Yes",0,0,9012971748,3034257090,"shalisa803@yahoo.com","Ralston Valley",10,"Debbie Erickson","5A","Red",75,"No","Yes"]
[null,83,"Amanda Cushen","Amanda","Cushen","Yes",1,0,"207-653-5074","207-653-5074","siobhainikc@yahoo.com","Rampart",9,"Nikki Kinzer","5A","Blue",105,"Yes","No"]
[null,84,"Anne-Liese Golletz","Anne-Liese","Golletz","Yes",2,0,"720-849-0175","303-979-8034","agolletz33@gmail.com","Chatfield",1,"Stephanie Schick","5A","Blue",135,"No","Yes"]
[null,85,"Kalee Maricle","Kalee","Maricle","Yes",2,0,"720-256-8265","303-693-8414","m.kalee2@gmail.com","Eaglecrest",1,"Tanya Bond","5A","Blue",135,"No","Yes"]
[null,86,"Haley McLaren","Haley","McLaren","Yes",0,0,3039024606,3036804429,"haleymclaren83@gmail.com","Grandview",1,"Patty Childress","5A","Blue",75,"Yes","No"]
[null,87,"Natalie Passeck","Natalie","Passeck","Yes",2,0,7202897437,7208516605,"natalie4vbmail@comcast.net","Chaparral",18,"T.R Ellis","5A","Blue",135,"Yes","No"]
[null,88,"August Raskie","August","Raskie","Yes",1,0,7193672347,7193672347,"tararaskie@me.com","Rampart ",8,"Nikki Kinzer","5A","Blue",105,"Yes","No","University of Oregon"]
[null,89,"Abigail Reid","Abigail","Reid","Yes",1,0,"720-431-2366",3033550777,"abigail_reid15@yahoo.com","Denver East",5,"Tarah Sponenberg","5A","Blue",105,"Yes","No"]
[null,90,"Shayli Siegfreid","Shayli","Siegfreid","Yes",2,0,5599722818,3033461504,"shaylisiegfreid@gmail.com","Highlands Ranch",1,"Louis Krauss","5A","Blue",135,"Yes","No"]
[null,91,"Sidney Wicks","Sidney","Wicks","Yes",2,0,"720-998-4114","303-617-8227","cwickshome@comcast.net","Cherokee Trail",8,"Terry Miller","5A","Blue",135,"No","Yes","Thank you"]
[null,null,{"$f":"\"Athletes - \"&SUBTOTAL(3,E10:E100)","v":"Athletes - 91"},null,null,null,{"$f":"SUBTOTAL(9,G10:G100)","v":180},{"$f":"SUBTOTAL(9,H10:H100)","v":2},null,null,null,null,null,null,null,null,{"$f":"SUBTOTAL(9,Q10:Q100)","v":12225}]
[null,null,null,null,null,null,null,null," "]

{"sheet":"Invoice","index":1,"n_rows":35,"n_cols":5,"rows_kept":35,"cut":false,"hidden":false,"merged":[[34,0,34,4],[1,2,1,4],[18,3,18,4],[19,3,19,4],[6,3,6,4],[4,3,4,4],[22,3,22,4],[23,3,23,4],[16,3,16,4],[17,3,17,4],[20,3,20,4],[21,3,21,4]]}
[]
[]
[]
[]
[null,"P.O. Box 1750","DATE:",{"$f":"TODAY()","v":"2014-11-13"}]
[null,"Arvada, CO 80001","INVOICE #","CCGS-VB",91]
[null,null,"FOR:","CCGS All State Games"]
[]
[]
[]
[null,{"$f":"IF(ISBLANK(VLOOKUP(E6,Attending!B10:T100,3,FALSE)&\" \"&VLOOKUP(E6,Attending!B10:T100,4,FALSE)),\"\",VLOOKUP(E6,Attending!B10:T100,3,FALSE)&\" \"&VLOOKUP(E6,Attending!B10:T100,4,FALSE))& \" #\" & VLOOKUP(E6,Attending!B10:T152,12,FALSE)","v":"Sidney Wicks #8"},null,{"$f":"VLOOKUP(E6,Attending!B10:T152,14,FALSE)","v":"5A"},{"$f":"VLOOKUP(E6,Attending!B10:T152,15,FALSE)&\" Team\"","v":"Blue Team"}]
[null,{"$f":"IF(ISBLANK(VLOOKUP(E6,Attending!B10:T100,11,FALSE)),\"\",VLOOKUP(E6,Attending!B10:T100,11,FALSE))","v":"Cherokee Trail"}]
[null,{"$f":"VLOOKUP(E6,Attending!B10:T100,10,FALSE)","v":"cwickshome@comcast.net"}]
[null,{"$f":"VLOOKUP(E6,Attending!B10:T100,8,FALSE)","v":"720-998-4114"}]
[]
[]
[null,"DESCRIPTION","QTY","AMOUNT"]
[null,"Player Fee",1,75]
[null,"Guest Tickets",{"$f":"VLOOKUP(E6,Attending!B10:T100,6,FALSE)","v":2},{"$f":"C19*30","v":60}]
[]
[]
[]
[]
[]
[null,null,"TOTAL",null,{"$f":"SUM(D18:D24)","v":135}]
[]
[null,"Notes:"]
[null,{"$f":"\"Attending Banquet - \"&VLOOKUP(E6,Attending!B10:T152,5,FALSE)","v":"Attending Banquet - Yes"}]
[null,{"$f":"\"Vegetarian Meal - \"&VLOOKUP(E6,Attending!B10:T152,7,FALSE)","v":"Vegetarian Meal - 0"}]
[]
[null,"Make all checks payable to: CCGS"]
[]
[]
[]
["THANK YOU FOR SUPPORTING CCGS AND THE ALL STATE GAMES!"]

{"sheet":"Not Attending","index":2,"n_rows":11,"n_cols":10,"rows_kept":11,"cut":false,"hidden":false,"merged":[]}
[]
[]
[]
[]
[]
[]
[]
[]
[null,"Date/Time","Name","First Name","Last Name","E-mail","Classification","Team","School","Questions or Comments"]
[null,"2011-11-15T09:58:22",{"$f":"E10&\", \"&D10","v":"Reid, Alex"},"Alex","Reid","admiral_apples@hotmail.com","5A","Red","Grandview High School","Thank you so much for being selected for the all state game. It is a great honor. I am unable to attend due to my official visit being the same weekend."]
[null,null,{"$f":"\"Athletes - \"&SUBTOTAL(3,E10:E10)","v":"Athletes - 1"}]

{"sheet":"Program","index":3,"n_rows":118,"n_cols":11,"rows_kept":118,"cut":false,"hidden":false,"merged":[[38,7,38,8],[21,1,21,4],[36,1,36,2],[37,1,37,2],[21,7,21,10],[36,7,36,8],[37,7,37,8],[38,1,38,2],[78,7,78,8],[101,1,101,4],[116,1,116,2],[117,1,117,2],[81,1,81,4],[82,1,82,4],[97,1,97,2],[98,1,98,2],[100,1,100,4],[78,1,78,2],[1,7,1,10],[2,7,2,10],[17,7,17,8],[18,7,18,8],[20,7,20,10],[1,1,1,4],[2,1,2,4],[17,1,17,2],[20,1,20,4],[18,1,18,3],[19,1,19,2],[61,1,61,4],[76,1,76,2],[77,1,77,2],[41,7,41,10],[42,7,42,10],[57,7,57,8],[58,7,58,8],[60,7,60,10],[61,7,61,10],[76,7,76,8],[77,7,77,8],[41,1,41,4],[42,1,42,4],[57,1,57,2],[58,1,58,2],[60,1,60,4]]}
[]
[null,"2014 All State Volleyball",null,null,null,null,null,{"$f":"B2","v":"2014 All State Volleyball"}]
[null,"1A Red Team",null,null,null,null,null,"2A Red Team"]
[]
[null,"Player","School","#","Coach",null,null,"Player","School","#","Coach"]
[]
[null,"Megan Chintala","Fleming",8,"Derek Herbert",null,null,"Mikaela Balkind","Telluride",1,"Fawnda Rogers"]
[null,"Heather Dieckman","Sangre de Cristo",6,"Misty Lambert",null,null,"Rachael Edler","Caliche",5,"Jeanett Lambrecht"]
[null,"Hanna  Herman","Hi-Plains  ",1,"Erin Henschel",null,null,"Sami Johnson","Sargent ",11,"Randi Asbell "]
[null,"Aurelia Isenbart","Kit Carson",23,"Penny Isenbart",null,null,"Bailee Jones","Hoehne",6,"Shelly Jones"]
[null,"Jordan Isom","McClave",9,"Rachel Dunning",null,null,"Madison Powell","Yuma",4,"Jenny Noble"]
[null,"Deborah Kurtzer","Fleming",19,"Derek Herbert",null,null,"Leah Roberson","Swink",16,"Amber Barrett"]
[null,"Koby Mondragon","Springfield",11,"Chantel Hall ",null,null,"Jessica Taylor","Caliche ",13,"Jeanett Lambrecht"]
[null,"Elayna Muller","Fleming",1,"Derek Herbert",null,null,"Katrina Terrell","Yuma",5,"Jen Noble"]
[null,"Jordan Williams","Norwood",15,"Karla Gonzales",null,null,"Kelci Van Treese","Sargent",4,"Randi Asbell"]
[]
[null,"Coaches",null,null,null,null,null,"Coaches"]
[null,"Erin Henschel - Hi-Plains",null,null,null,null,null,"Randi Asbell - Sargent"]
[null,"Sarah Loutzenhiser - Hi-Plains",null,null,null,null,null,"Shelly Jones - Hoehne"]
[]
[null,{"$f":"B2","v":"2014 All State Volleyball"},null,null,null,null,null,{"$f":"B2","v":"2014 All State Volleyball"}]
[null,"1A Blue Team",null,null,null,null,null,"2A Blue Team"]
[]
[null,"Player","School","#","Coach",null,null,"Player","School","#","Coach"]
[]
[null,"Allie Beiriger","Sangre de Cristo",10,"Misty Lambert",null,null,"Jordan Baer","Akron",14,"Jayme Deal"]
[null,"Denise Cano","Idalia",1,"Kylie Chamberlain ",null,null,"Taylor  Dodge","Byers",13,"Jolene Dodge"]
[null,"Rachel Frantz","Fleming",9,"Derek Herbert",null,null,"Easton Hartigan","Paonia",14,"Krista Carsten"]
[null,"Stephanie Helling","Idalia",12,"Kylie Chamberlain",null,null,"Morgan Hartigan","Paonia",15,"Krista Carsten"]
[null,"Saige Herbert","Fleming",3,"Derek Herbert",null,null,"Preston Lienemann","Resurrection Christian",5,"Caleb Howard"]
[null,"Timmi Keisel","Fleming",25,"Derek Herbert",null,null,"Hannah Lutz","Simla",4,"Sue Snyder"]
[null,"Abbey Stagner","Sangre De Cristo",4,"Misty Lambert",null,null,"Jayde Van Oort","Rye",6,"Tammy Van Oort"]
[null,"Rena  Trujillo","La Veta",5,"Bree Lessar",null,null,"Madison Webb","Resurrection Christian",9,"Caleb Howard"]
[null,"Abigail Valerio","Rocky Mountain Lutheran",9,"Kelly Presser",null,null,"Madeleine Woods","Custer County ",13,"Greg Cravens"]
[]
[null,"Coaches",null,null,null,null,null,"Coaches"]
[null,"Sherry Teague - Prairie",null,null,null,null,null,"Greg Cravens - Custer County"]
[null,null,null,null,null,null,null,"Tammy Van Oort - Rye"]
[]
[]
[]
[null,{"$f":"B2","v":"2014 All State Volleyball"},null,null,null,null,null,{"$f":"B2","v":"2014 All State Volleyball"}]
[null,"3A Red Team",null,null,null,null,null,"4A Red Team"]
[]
[null,"Player","School","#","Coach",null,null,"Player","School","#","Coach"]
[]
[null,"Kenzi Chrisman","Sterling",5,"Lisa Schumacher",null,null,"Jessica Jackson","Thomas Jefferson",9,"Kathleen Nickless"]
[null,"Linneah Dozer","Faith Christian",4,"Chris Powers",null,null,"Kayla Kagan","Elizabeth",3,"Lori McCoin"]
[null,"Danyle Dupray","Faith Christian",3,"Chris Powers",null,null,"Cori Kirschling","Niwot",6,"Preston Brown"]
[null,"Felicia Hernandez","Bishop Machebeuf",1,"John Hardcastle",null,null,"Ellise Lech","Ponderosa",11,"Rob Graham"]
[null,"Kirstie Hillyer","Bayfield",1,"Terene Foutz",null,null,"Becca Page","Ponderosa",15,"Rob Graham"]
[null,"Elizabeth Jensen","Bishop Machebeuf",2,"John Hardcastle",null,null,"Naomi  Pinnecoose","Montezuma Cortez",7,"Andi Pickens "]
[null,"Leah Kanakaraj","Coal Ridge",5,"Scott Black ",null,null,"Shay Piper","Elizabeth",6,"Lori McCoin"]
[null,"Shayla Klein","Sterling ",12,"Lisa Schumacher",null,null,"Dani Potter","Green Mountain",10,"Kelley Morrison"]
[null,"Theresa Tafoya","Olathe",9,"Becky Patrone",null,null,"Cassidy Wurth","Valor Christian",5,"Tara Hittle"]
[]
[null,"Coaches",null,null,null,null,null,"Coaches"]
[null,"John Hardcastle - Machebeuf\nHolly Hardcastle - Machebeuf",null,null,null,null,null,"Rob Graham - Ponderosa"]
[null,"Holly Hardcastle - Machebeuf",null,null,null,null,null,"Kevin Snyder - Ponderosa"]
[]
[null,{"$f":"B2","v":"2014 All State Volleyball"},null,null,null,null,null,{"$f":"B2","v":"2014 All State Volleyball"}]
[null,"3A Blue Team",null,null,null,null,null,"4A Blue Team"]
[]
[null,"Player","School","#","Coach",null,null,"Player","School","#","Coach"]
[]
[null,"Cori Aafedt","Valley",8,"René Aafedt",null,null,"Kellyn Alexander","Montrose",6,"Shane Forrest"]
[null,"Winter Bardol","Buena Vista",4,"Jamie Page",null,null,"Lindsey Baker","Cheyenne Mountain",5,"David Barkley"]
[null,"Kyra  Chenoweth","Grand Valley",6,"Dave Walck",null,null,"Courtney Domme (Inj)","Cheyenne Mountain",1,"David Barkley"]
[null,"Alondra Garza","Valley",1,"Renѐ Aafedt",null,null,"Mackenzie Ellison","Battle Mountain",6,"Jason Fitzgerald "]
[null,"Jamie Jo Johnson","Platte Valley",6,"Jared Rudiger",null,null,"Jordan Hoffman ","Mesa Ridge",11,"Sam Oerter "]
[null,"Kyra Mix","Platte Valley",14,"Jared Rudiger",null,null,"Nicole  Montgomery ","Lewis-Palmer",6,"Susan Odenbaugh "]
[null,"Layne Pachl","Valley",12,"Renѐ Aafedt",null,null,"Jenna Price","Cheyenne Mountain",15,"David Barkley"]
[null,"Cori Scott","Buena Vista",5,"Jamie Page",null,null,"Allegra Shippy","Pueblo West",11,"Casey King"]
[null,"Samantha Joy Smith","University",7,"Lindsey Brown",null,null,"Alexa Smith","Lewis Palmer",7,"Susan Odenbaugh"]
[null,null,null,null,null,null,null,"Jayde Vujcich","Pueblo West",8,"Casey King"]
[null,"Coaches",null,null,null,null,null,"Coaches"]
[null,"Rene' Aafedt - Valley",null,null,null,null,null,"Susan Odenbaugh - Lewis-Palmer"]
[null,"Michelle Chacon - Valley",null,null,null,null,null,"Wade Baxter - Lewis-Palmer"]
[]
[]
[]
[null,{"$f":"B2","v":"2014 All State Volleyball"}]
[null,"5A Red Team"]
[]
[null,"Player","School","#","Coach"]
[]
[null,"Jillian Desmond","Regis Jesuit",8,"Laura Dunston"]
[null,"Simone Gibeau","Ralston Valley",11,"Deb Ponis-Erickson"]
[null,"Amelia Metzler","Chatfield",6,"Stephanie Schick"]
[null,"Melanie Patenaude","Cherry Creek",7,"Sally Moos"]
[null,"Katie Patrick","Grandview",15,"Patty Childress"]
[null,"Jordyn Poulter","Eaglecrest",13,"Tanya Bond"]
[null,"Shea Reilly","Cherry Creek",3,"Sally Moos"]
[null,"Santaisha Sturges","Regis Jesuit",2,"Laura Dunston"]
[null,"Ali Williams-Daugherty","Ralston Valley",10,"Debbie Erickson"]
[]
[null,"Coaches"]
[null,"Deb Erickson - Ralston Valley"]
[null,"Brooke Rillos - Ralston Valley"]
[null,"Johnny Weber - Ralson Valley"]
[null,{"$f":"B2","v":"2014 All State Volleyball"}]
[null,"5A Blue Team"]
[]
[null,"Player","School","#","Coach"]
[]
[null,"Amanda Cushen","Rampart",9,"Nikki Kinzer"]
[null,"Anne-Liese Golletz","Chatfield",1,"Stephanie Schick"]
[null,"Kalee Maricle","Eaglecrest",1,"Tanya Bond"]
[null,"Haley McLaren","Grandview",1,"Patty Childress"]
[null,"Natalie Passeck","Chaparral",18,"T.R Ellis"]
[null,"August Raskie","Rampart ",8,"Nikki Kinzer"]
[null,"Abigail Reid","Denver East",5,"Tarah Sponenberg"]
[null,"Shayli Siegfreid","Highlands Ranch",1,"Louis Krauss"]
[null,"Sidney Wicks","Cherokee Trail",8,"Terry Miller"]
[]
[null,"Coach"]
[null,"Mary Millman - Mountain Vista"]
[null,"Val Elliott - Douglas County"]

{"sheet":"Name","index":4,"n_rows":92,"n_cols":1,"rows_kept":92,"cut":false,"hidden":false,"merged":[]}
["Name"]
[{"$f":"Attending!C10","v":"Megan Chintala"}]
[{"$f":"Attending!C11","v":"Heather Dieckman"}]
[{"$f":"Attending!C12","v":"Hanna  Herman"}]
[{"$f":"Attending!C13","v":"Aurelia Isenbart"}]
[{"$f":"Attending!C14","v":"Jordan Isom"}]
[{"$f":"Attending!C15","v":"Deborah Kurtzer"}]
[{"$f":"Attending!C16","v":"Koby Mondragon"}]
[{"$f":"Attending!C17","v":"Elayna Muller"}]
[{"$f":"Attending!C18","v":"Jordan Williams"}]
[{"$f":"Attending!C19","v":"Allie Beiriger"}]
[{"$f":"Attending!C20","v":"Denise Cano"}]
[{"$f":"Attending!C21","v":"Rachel Frantz"}]
[{"$f":"Attending!C22","v":"Stephanie Helling"}]
[{"$f":"Attending!C23","v":"Saige Herbert"}]
[{"$f":"Attending!C24","v":"Timmi Keisel"}]
[{"$f":"Attending!C25","v":"Abbey Stagner"}]
[{"$f":"Attending!C26","v":"Rena  Trujillo"}]
[{"$f":"Attending!C27","v":"Abigail Valerio"}]
[{"$f":"Attending!C28","v":"Mikaela Balkind"}]
[{"$f":"Attending!C29","v":"Rachael Edler"}]
[{"$f":"Attending!C30","v":"Sami Johnson"}]
[{"$f":"Attending!C31","v":"Bailee Jones"}]
[{"$f":"Attending!C32","v":"Madison Powell"}]
[{"$f":"Attending!C33","v":"Leah Roberson"}]
[{"$f":"Attending!C34","v":"Jessica Taylor"}]
[{"$f":"Attending!C35","v":"Katrina Terrell"}]
[{"$f":"Attending!C36","v":"Kelci Van Treese"}]
[{"$f":"Attending!C37","v":"Jordan Baer"}]
[{"$f":"Attending!C38","v":"Taylor  Dodge"}]
[{"$f":"Attending!C39","v":"Easton Hartigan"}]
[{"$f":"Attending!C40","v":"Morgan Hartigan"}]
[{"$f":"Attending!C41","v":"Preston Lienemann"}]
[{"$f":"Attending!C42","v":"Hannah Lutz"}]
[{"$f":"Attending!C43","v":"Jayde Van Oort"}]
[{"$f":"Attending!C44","v":"Madison Webb"}]
[{"$f":"Attending!C45","v":"Madeleine Woods"}]
[{"$f":"Attending!C46","v":"Kenzi Chrisman"}]
[{"$f":"Attending!C47","v":"Linneah Dozer"}]
[{"$f":"Attending!C48","v":"Danyle Dupray"}]
[{"$f":"Attending!C49","v":"Felicia Hernandez"}]
[{"$f":"Attending!C50","v":"Kirstie Hillyer"}]
[{"$f":"Attending!C51","v":"Elizabeth Jensen"}]
[{"$f":"Attending!C52","v":"Leah Kanakaraj"}]
[{"$f":"Attending!C53","v":"Shayla Klein"}]
[{"$f":"Attending!C54","v":"Theresa Tafoya"}]
[{"$f":"Attending!C55","v":"Cori Aafedt"}]
[{"$f":"Attending!C56","v":"Winter Bardol"}]
[{"$f":"Attending!C57","v":"Kyra  Chenoweth"}]
[{"$f":"Attending!C58","v":"Alondra Garza"}]
[{"$f":"Attending!C59","v":"Jamie Jo Johnson"}]
[{"$f":"Attending!C60","v":"Kyra Mix"}]
[{"$f":"Attending!C61","v":"Layne Pachl"}]
[{"$f":"Attending!C62","v":"Cori Scott"}]
[{"$f":"Attending!C63","v":"Samantha Joy Smith"}]
[{"$f":"Attending!C64","v":"Jessica Jackson"}]
[{"$f":"Attending!C65","v":"Kayla Kagan"}]
[{"$f":"Attending!C66","v":"Cori Kirschling"}]
[{"$f":"Attending!C67","v":"Ellise Lech"}]
[{"$f":"Attending!C68","v":"Becca Page"}]
[{"$f":"Attending!C69","v":"Naomi  Pinnecoose"}]
[{"$f":"Attending!C70","v":"Shay Piper"}]
[{"$f":"Attending!C71","v":"Dani Potter"}]
[{"$f":"Attending!C72","v":"Cassidy Wurth"}]
[{"$f":"Attending!C73","v":"Kellyn Alexander"}]
[{"$f":"Attending!C74","v":"Lindsey Baker"}]
[{"$f":"Attending!C75","v":"Courtney Domme (Inj)"}]
[{"$f":"Attending!C76","v":"Mackenzie Ellison"}]
[{"$f":"Attending!C77","v":"Jordan Hoffman "}]
[{"$f":"Attending!C78","v":"Nicole  Montgomery "}]
[{"$f":"Attending!C79","v":"Jenna Price"}]
[{"$f":"Attending!C80","v":"Allegra Shippy"}]
[{"$f":"Attending!C81","v":"Alexa Smith"}]
[{"$f":"Attending!C82","v":"Jayde Vujcich"}]
[{"$f":"Attending!C83","v":"Jillian Desmond"}]
[{"$f":"Attending!C84","v":"Simone Gibeau"}]
[{"$f":"Attending!C85","v":"Amelia Metzler"}]
[{"$f":"Attending!C86","v":"Melanie Patenaude"}]
[{"$f":"Attending!C87","v":"Katie Patrick"}]
[{"$f":"Attending!C88","v":"Jordyn Poulter"}]
[{"$f":"Attending!C89","v":"Shea Reilly"}]
[{"$f":"Attending!C90","v":"Santaisha Sturges"}]
[{"$f":"Attending!C91","v":"Ali Williams-Daugherty"}]
[{"$f":"Attending!C92","v":"Amanda Cushen"}]
[{"$f":"Attending!C93","v":"Anne-Liese Golletz"}]
[{"$f":"Attending!C94","v":"Kalee Maricle"}]
[{"$f":"Attending!C95","v":"Haley McLaren"}]
[{"$f":"Attending!C96","v":"Natalie Passeck"}]
[{"$f":"Attending!C97","v":"August Raskie"}]
[{"$f":"Attending!C98","v":"Abigail Reid"}]
[{"$f":"Attending!C99","v":"Shayli Siegfreid"}]
[{"$f":"Attending!C100","v":"Sidney Wicks"}]

{"sheet":"Checklist","index":5,"n_rows":20,"n_cols":6,"rows_kept":20,"cut":false,"hidden":false,"merged":[[7,1,7,5],[1,1,1,5],[3,1,3,2],[3,3,3,5],[4,1,4,2],[4,3,4,5],[5,1,5,2],[5,3,5,5]]}
[]
[null,"All-State Volleyball Check List"]
[]
[null,"To be completed by:",null,"Lisa Schumacher - CCGS Volleyball Chair"]
[null,"Coaches Meeting Deadline:",null,"2014-11-09"]
[null,"Game Day Deadline:",null,"2014-11-16"]
[]
[]
[null,"% done","Things to do","Due By","Assigned","Notes"]
[null,1,"Update All-State Ballot",{"$f":"$D$5-41","v":"2014-09-29"},"Lisa","Send to Joe for website - schmidtj@colocgs.org"]
[null,0.9,"Verify volleyball page is up to date",{"$f":"$D$5-31","v":"2014-10-09"},"Joe","Waiting on website link from DoubleTree"]
[null,0,"Update Players Packet",{"$f":"$D$5-21","v":"2014-10-19"},"Lisa","Send to Joe for website - schmidtj@colocgs.org"]
[null,0,"Update Athlete Congrats Letter","2014-10-19","Lisa","Verify web address & obtain new password from Joe"]
[null,0,"Update Coaches Letter","2014-10-19","Lisa"]
[null,0,"Test Online Form",{"$f":"$D$5-14","v":"2014-10-26"},"Lisa/Joe","Verify you receive two emails and they are correct and up to date"]
[]
[]
[]
[null,0,"Send total numbers",{"$f":"D6-3","v":"2014-11-13"},"Joe","Get Lisa's final numbers, add to Joe's and send to Terri"]
[null,0,"Send all printable documents",{"$f":"D6-2","v":"2014-11-14"},"Joe","E-mail Certificates, Invoices, programs, sign in sheets to Lisa for printing"]